[Event "Titled Tuesday Blitz June 27 Early 2023"]
[White "Gheorghiu, Calin"]
[Black "Danielyan, Vahe"]
[WhiteFideId "1200305"]
[BlackFideId "13304828"]
[WhiteElo "2490"]
[BlackElo "2674"]
[Result "0-1"]
[Round "6"]
[TimeControl "180+2"]
[Date "2023.06.27"]
[WhiteClock "0:00:01"]
[BlackClock "0:00:10"]
[Board "77"]

1. e4 {[%clk 0:03:00]}  c5 {[%clk 0:02:59]} 2. Ne2 {[%clk 0:03:00]}  Nc6 {[%clk 0:02:58]} 3. Ng3 {[%clk 0:02:59]}  g6 {[%clk 0:02:55]} 4. Bb5 {[%clk 0:02:59]}  h5 {[%clk 0:02:49]} 5. h4 {[%clk 0:02:51]}  Bg7 {[%clk 0:02:47]} 6. c3 {[%clk 0:02:51]}  Nf6 {[%clk 0:02:46]} 7. Qe2 {[%clk 0:02:50]}  Ng4 {[%clk 0:02:42]} 8. d3 {[%clk 0:02:44]}  Qc7 {[%clk 0:02:33]} 9. Nd2 {[%clk 0:02:37]}  Kf8 {[%clk 0:02:19]} 10. Ndf1 {[%clk 0:02:32]}  Nd4 {[%clk 0:02:06]} 11. cxd4 {[%clk 0:02:28]}  Qa5+ {[%clk 0:02:03]} 12. Qd2 {[%clk 0:01:59]}  Qxb5 {[%clk 0:02:03]} 13. a4 {[%clk 0:01:59]}  Qb4 {[%clk 0:01:41]} 14. Qxb4 {[%clk 0:01:56]}  cxb4 {[%clk 0:01:42]} 15. d5 {[%clk 0:01:41]}  d6 {[%clk 0:01:36]} 16. Ne3 {[%clk 0:01:36]}  Ne5 {[%clk 0:01:28]} 17. Ke2 {[%clk 0:01:31]}  b6 {[%clk 0:01:27]} 18. f4 {[%clk 0:01:21]}  Nd7 {[%clk 0:01:26]} 19. a5 {[%clk 0:01:17]}  Ba6 {[%clk 0:01:23]} 20. axb6 {[%clk 0:01:10]}  axb6 {[%clk 0:01:23]} 21. Nc4 {[%clk 0:01:10]}  Nc5 {[%clk 0:01:17]} 22. Be3 {[%clk 0:01:07]}  Kg8 {[%clk 0:01:07]} 23. Bxc5 {[%clk 0:00:53]}  bxc5 {[%clk 0:01:01]} 24. Ra5 {[%clk 0:00:52]}  Kh7 {[%clk 0:00:56]} 25. Rha1 {[%clk 0:00:52]}  Bxc4 {[%clk 0:00:43]} 26. Rxa8 {[%clk 0:00:49]}  Rxa8 {[%clk 0:00:43]} 27. Rxa8 {[%clk 0:00:49]}  Bb3 {[%clk 0:00:41]} 28. e5 {[%clk 0:00:44]}  Bxd5 {[%clk 0:00:38]} 29. exd6 {[%clk 0:00:41]}  exd6 {[%clk 0:00:34]} 30. Rd8 {[%clk 0:00:40]}  Bxb2 {[%clk 0:00:31]} 31. Rxd6 {[%clk 0:00:40]}  Ba2 {[%clk 0:00:25]} 32. Ne4 {[%clk 0:00:26]}  Bd4 {[%clk 0:00:20]} 33. Rd7 {[%clk 0:00:17]}  Kg8 {[%clk 0:00:14]} 34. Nd6 {[%clk 0:00:12]}  b3 {[%clk 0:00:11]} 35. Rd8+ {[%clk 0:00:10]}  Kg7 {[%clk 0:00:09]} 36. Nc4 {[%clk 0:00:06]}  b2 {[%clk 0:00:08]} 37. Nxb2 {[%clk 0:00:02]}  Bxb2 {[%clk 0:00:09]} 38. Ra8 {[%clk 0:00:02]}  Be6 {[%clk 0:00:07]} 39. Rb8 {[%clk 0:00:03]}  Bd4 {[%clk 0:00:08]} 40. g3 {[%clk 0:00:03]}  Bg4+ {[%clk 0:00:07]} 41. Kd2 {[%clk 0:00:04]}  Bf5 {[%clk 0:00:08]} 42. Rb7 {[%clk 0:00:04]}  Kf6 {[%clk 0:00:08]} 43. Rb6+ {[%clk 0:00:04]}  Be6 {[%clk 0:00:09]} 44. Rc6 {[%clk 0:00:04]}  Kf5 {[%clk 0:00:09]} 45. Ke2 {[%clk 0:00:01]}  Kg4 {[%clk 0:00:10]} 0-1


[Site "https://www.chess.com"]

[Event "Titled Tuesday Blitz June 27 Early 2023"]
[White "Boraso, Alessio"]
[Black "Leon Oquendo, Jorge"]
[WhiteFideId "848077"]
[BlackFideId "3514803"]
[WhiteElo "2480"]
[BlackElo "2671"]
[Result "0-1"]
[Round "6"]
[TimeControl "180+2"]
[Date "2023.06.27"]
[WhiteClock "0:00:00"]
[BlackClock "0:01:01"]
[Board "78"]

1. e4 {[%clk 0:03:00]}  c6 {[%clk 0:02:58]} 2. d4 {[%clk 0:03:00]}  d5 {[%clk 0:02:58]} 3. e5 {[%clk 0:02:58]}  Bf5 {[%clk 0:02:57]} 4. Nc3 {[%clk 0:02:59]}  e6 {[%clk 0:02:46]} 5. g4 {[%clk 0:02:59]}  Bg6 {[%clk 0:02:45]} 6. Nge2 {[%clk 0:02:59]}  h6 {[%clk 0:02:43]} 7. Nf4 {[%clk 0:02:58]}  Bh7 {[%clk 0:02:43]} 8. Bd3 {[%clk 0:02:50]}  Bxd3 {[%clk 0:02:44]} 9. Qxd3 {[%clk 0:02:49]}  c5 {[%clk 0:02:44]} 10. Be3 {[%clk 0:02:37]}  cxd4 {[%clk 0:02:42]} 11. Bxd4 {[%clk 0:02:38]}  Nc6 {[%clk 0:02:42]} 12. O-O-O {[%clk 0:02:34]}  Rc8 {[%clk 0:02:41]} 13. Kb1 {[%clk 0:02:35]}  Qa5 {[%clk 0:02:34]} 14. Qb5 {[%clk 0:02:15]}  Qxb5 {[%clk 0:02:30]} 15. Nxb5 {[%clk 0:02:16]}  a6 {[%clk 0:02:30]} 16. Na7 {[%clk 0:02:07]}  Nxa7 {[%clk 0:02:29]} 17. Bxa7 {[%clk 0:02:08]}  Ne7 {[%clk 0:02:29]} 18. h4 {[%clk 0:02:04]}  Nc6 {[%clk 0:02:28]} 19. Bd4 {[%clk 0:02:02]}  Nxd4 {[%clk 0:02:15]} 20. Rxd4 {[%clk 0:02:03]}  Bc5 {[%clk 0:02:15]} 21. Rd2 {[%clk 0:02:03]}  Ke7 {[%clk 0:02:15]} 22. Nd3 {[%clk 0:02:01]}  Bb6 {[%clk 0:02:14]} 23. h5 {[%clk 0:01:59]}  Rc4 {[%clk 0:02:13]} 24. f4 {[%clk 0:01:54]}  Be3 {[%clk 0:02:10]} 25. Re2 {[%clk 0:01:46]}  Bxf4 {[%clk 0:02:09]} 26. Rf1 {[%clk 0:01:38]}  Bg5 {[%clk 0:02:07]} 27. b3 {[%clk 0:01:26]}  Rxg4 {[%clk 0:02:05]} 28. Nc5 {[%clk 0:01:22]}  Rb8 {[%clk 0:02:02]} 29. Ref2 {[%clk 0:01:22]}  f6 {[%clk 0:01:58]} 30. Re2 {[%clk 0:01:18]}  f5 {[%clk 0:01:56]} 31. c4 {[%clk 0:01:15]}  dxc4 {[%clk 0:01:55]} 32. Rd1 {[%clk 0:01:16]}  b6 {[%clk 0:01:49]} 33. Nxa6 {[%clk 0:00:26]}  Rc8 {[%clk 0:01:35]} 34. Rf1 {[%clk 0:00:27]}  cxb3 {[%clk 0:01:33]} 35. axb3 {[%clk 0:00:26]}  b5 {[%clk 0:01:26]} 36. Rd1 {[%clk 0:00:25]}  Rc6 {[%clk 0:01:24]} 37. Nb8 {[%clk 0:00:25]}  Rc7 {[%clk 0:01:24]} 38. Na6 {[%clk 0:00:25]}  Rc3 {[%clk 0:01:23]} 39. Rc2 {[%clk 0:00:15]}  Rxc2 {[%clk 0:01:20]} 40. Kxc2 {[%clk 0:00:16]}  Rg2+ {[%clk 0:01:16]} 41. Kc3 {[%clk 0:00:15]}  f4 {[%clk 0:01:10]} 42. Nb8 {[%clk 0:00:15]}  f3 {[%clk 0:01:10]} 43. Nc6+ {[%clk 0:00:12]}  Ke8 {[%clk 0:01:08]} 44. Kd3 {[%clk 0:00:06]}  f2 {[%clk 0:01:07]} 45. Ke2 {[%clk 0:00:07]}  Rg1 {[%clk 0:01:07]} 46. Rf1 {[%clk 0:00:07]}  Rxf1 {[%clk 0:01:07]} 47. Kxf1 {[%clk 0:00:08]}  Be3 {[%clk 0:01:07]} 48. Nb4 {[%clk 0:00:07]}  Bd4 {[%clk 0:01:05]} 49. Nc6 {[%clk 0:00:06]}  Bc5 {[%clk 0:01:05]} 50. Na5 {[%clk 0:00:01]}  Kd7 {[%clk 0:01:04]} 51. Nb7 {[%clk 0:00:02]}  Bd4 {[%clk 0:01:03]} 52. Na5 {[%clk 0:00:02]}  Kc7 {[%clk 0:01:02]} 53. b4 {[%clk 0:00:02]}  Bxe5 {[%clk 0:01:01]} 54. Kxf2 {[%clk 0:00:02]}  Bc3 {[%clk 0:01:02]} 55. Nb3 {[%clk 0:00:01]}  Bxb4 {[%clk 0:01:02]} 56. Kf3 {[%clk 0:00:01]}  Bc3 {[%clk 0:01:01]} 57. Ke4 {[%clk 0:00:00]}  Kd6 {[%clk 0:01:01]} 0-1


[Site "https://www.chess.com"]

[Event "Titled Tuesday Blitz June 27 Early 2023"]
[White "Papasimakopoulos, Alexandros"]
[Black "Yeritsyan, Hayk"]
[WhiteFideId "4244125"]
[BlackFideId "13307320"]
[WhiteElo "2658"]
[BlackElo "2470"]
[Result "0-1"]
[Round "6"]
[TimeControl "180+2"]
[Date "2023.06.27"]
[WhiteClock "0:01:02"]
[BlackClock "0:00:24"]
[Board "81"]

1. d4 {[%clk 0:03:00]}  d5 {[%clk 0:02:59]} 2. c4 {[%clk 0:03:01]}  e6 {[%clk 0:02:58]} 3. Nc3 {[%clk 0:03:01]}  dxc4 {[%clk 0:02:59]} 4. e4 {[%clk 0:03:01]}  a6 {[%clk 0:02:59]} 5. Bxc4 {[%clk 0:03:01]}  b5 {[%clk 0:02:59]} 6. Bd3 {[%clk 0:03:00]}  Bb7 {[%clk 0:03:00]} 7. Nf3 {[%clk 0:03:00]}  Nf6 {[%clk 0:03:00]} 8. e5 {[%clk 0:02:58]}  Nd5 {[%clk 0:03:00]} 9. Ne4 {[%clk 0:02:57]}  Nd7 {[%clk 0:02:58]} 10. O-O {[%clk 0:02:52]}  c5 {[%clk 0:02:58]} 11. Bg5 {[%clk 0:02:52]}  Qb6 {[%clk 0:02:56]} 12. dxc5 {[%clk 0:02:42]}  Nxc5 {[%clk 0:02:54]} 13. Nxc5 {[%clk 0:02:42]}  Bxc5 {[%clk 0:02:55]} 14. a3 {[%clk 0:02:42]}  h6 {[%clk 0:02:46]} 15. Bh4 {[%clk 0:02:42]}  O-O {[%clk 0:02:46]} 16. b4 {[%clk 0:02:42]}  Be7 {[%clk 0:02:45]} 17. Bxe7 {[%clk 0:02:39]}  Nxe7 {[%clk 0:02:45]} 18. Qe2 {[%clk 0:02:39]}  Rfd8 {[%clk 0:02:41]} 19. Rfd1 {[%clk 0:02:31]}  Rac8 {[%clk 0:02:32]} 20. h3 {[%clk 0:02:29]}  Qa7 {[%clk 0:02:09]} 21. Rac1 {[%clk 0:02:26]}  Qa8 {[%clk 0:02:09]} 22. Ne1 {[%clk 0:02:25]}  Nd5 {[%clk 0:01:50]} 23. Qe4 {[%clk 0:02:24]}  Nf6 {[%clk 0:01:50]} 24. Qh4 {[%clk 0:02:14]}  Nd7 {[%clk 0:01:47]} 25. Qg3 {[%clk 0:02:04]}  Nf8 {[%clk 0:01:45]} 26. Bf1 {[%clk 0:01:56]}  Bd5 {[%clk 0:01:35]} 27. Nd3 {[%clk 0:01:56]}  Bc4 {[%clk 0:01:12]} 28. Nc5 {[%clk 0:01:53]}  Bxf1 {[%clk 0:01:09]} 29. Kxf1 {[%clk 0:01:54]}  a5 {[%clk 0:01:06]} 30. h4 {[%clk 0:01:45]}  axb4 {[%clk 0:01:01]} 31. axb4 {[%clk 0:01:46]}  Qa2 {[%clk 0:00:57]} 32. h5 {[%clk 0:01:44]}  Rxd1+ {[%clk 0:00:54]} 33. Rxd1 {[%clk 0:01:44]}  Qc4+ {[%clk 0:00:54]} 34. Nd3 {[%clk 0:01:40]}  Rd8 {[%clk 0:00:51]} 35. Ke1 {[%clk 0:01:37]}  Nh7 {[%clk 0:00:43]} 36. f4 {[%clk 0:01:27]}  Nf8 {[%clk 0:00:30]} 37. Qe3 {[%clk 0:01:27]}  Rd4 {[%clk 0:00:29]} 38. Qd2 {[%clk 0:01:16]}  Re4+ {[%clk 0:00:25]} 39. Kf2 {[%clk 0:01:15]}  Rd4 {[%clk 0:00:22]} 40. Ke3 {[%clk 0:01:13]}  Re4+ {[%clk 0:00:14]} 41. Kf3 {[%clk 0:01:11]}  Rd4 {[%clk 0:00:14]} 42. Kf2 {[%clk 0:00:50]}  Nd7 {[%clk 0:00:14]} 43. Ke3 {[%clk 0:00:49]}  Nb6 {[%clk 0:00:14]} 44. Rc1 {[%clk 0:00:46]}  Nd5+ {[%clk 0:00:13]} 45. Ke2 {[%clk 0:00:45]}  Rxd3 {[%clk 0:00:10]} 46. Rxc4 {[%clk 0:00:40]}  Rxd2+ {[%clk 0:00:11]} 47. Kxd2 {[%clk 0:00:41]}  bxc4 {[%clk 0:00:11]} 48. b5 {[%clk 0:00:42]}  Nb6 {[%clk 0:00:11]} 49. Kc3 {[%clk 0:00:42]}  Kf8 {[%clk 0:00:12]} 50. Kd4 {[%clk 0:00:43]}  Ke7 {[%clk 0:00:12]} 51. Kc5 {[%clk 0:00:43]}  c3 {[%clk 0:00:12]} 52. Kxb6 {[%clk 0:00:44]}  c2 {[%clk 0:00:13]} 53. Ka7 {[%clk 0:00:45]}  c1=Q {[%clk 0:00:13]} 54. b6 {[%clk 0:00:46]}  Qxf4 {[%clk 0:00:13]} 55. b7 {[%clk 0:00:47]}  Qxe5 {[%clk 0:00:14]} 56. b8=Q {[%clk 0:00:47]}  Qxb8+ {[%clk 0:00:14]} 57. Kxb8 {[%clk 0:00:48]}  Kf6 {[%clk 0:00:15]} 58. g4 {[%clk 0:00:49]}  Kg5 {[%clk 0:00:15]} 59. Kc7 {[%clk 0:00:49]}  Kxg4 {[%clk 0:00:16]} 60. Kd6 {[%clk 0:00:50]}  Kxh5 {[%clk 0:00:16]} 61. Ke7 {[%clk 0:00:51]}  Kg6 {[%clk 0:00:17]} 62. Kd6 {[%clk 0:00:51]}  Kf6 {[%clk 0:00:17]} 63. Kc5 {[%clk 0:00:52]}  g5 {[%clk 0:00:18]} 64. Kd4 {[%clk 0:00:53]}  Kg6 {[%clk 0:00:18]} 65. Ke3 {[%clk 0:00:54]}  f5 {[%clk 0:00:18]} 66. Kf2 {[%clk 0:00:55]}  e5 {[%clk 0:00:19]} 67. Kg3 {[%clk 0:00:56]}  Kh5 {[%clk 0:00:20]} 68. Kf2 {[%clk 0:00:56]}  g4 {[%clk 0:00:20]} 69. Kg2 {[%clk 0:00:57]}  Kg5 {[%clk 0:00:21]} 70. Kg3 {[%clk 0:00:58]}  h5 {[%clk 0:00:22]} 71. Kg2 {[%clk 0:00:59]}  h4 {[%clk 0:00:22]} 72. Kh2 {[%clk 0:00:59]}  f4 {[%clk 0:00:23]} 73. Kg2 {[%clk 0:01:00]}  e4 {[%clk 0:00:24]} 74. Kf2 {[%clk 0:01:01]}  h3 {[%clk 0:00:24]} 75. Kg1 {[%clk 0:01:00]}  g3 {[%clk 0:00:24]} 76. Kh1 {[%clk 0:01:00]}  f3 {[%clk 0:00:25]} 77. Kg1 {[%clk 0:01:01]}  e3 {[%clk 0:00:25]} 78. Kh1 {[%clk 0:01:02]}  e2 {[%clk 0:00:25]} 79. Kg1 {[%clk 0:01:03]}  f2+ {[%clk 0:00:25]} 80. Kh1 {[%clk 0:01:02]}  e1=Q# {[%clk 0:00:24]} 0-1


[Site "https://www.chess.com"]

[Event "Titled Tuesday Blitz June 27 Early 2023"]
[White "Soham Kamotra"]
[Black "gueraumasague"]
[WhiteFideId "46647490"]
[WhiteElo "2653"]
[BlackElo "2470"]
[Result "1-0"]
[Round "6"]
[TimeControl "180+2"]
[Date "2023.06.27"]
[WhiteClock "0:00:14"]
[BlackClock "0:00:02"]
[Board "83"]

1. d4 {[%clk 0:03:00]}  g6 {[%clk 0:03:00]} 2. e4 {[%clk 0:02:46]}  Bg7 {[%clk 0:03:01]} 3. Nf3 {[%clk 0:02:45]}  c6 {[%clk 0:03:02]} 4. h3 {[%clk 0:02:40]}  d5 {[%clk 0:03:03]} 5. e5 {[%clk 0:02:40]}  Nh6 {[%clk 0:02:59]} 6. Be2 {[%clk 0:02:39]}  O-O {[%clk 0:02:55]} 7. O-O {[%clk 0:02:39]}  f6 {[%clk 0:02:55]} 8. Bf4 {[%clk 0:02:38]}  Nf7 {[%clk 0:02:53]} 9. Nbd2 {[%clk 0:02:32]}  fxe5 {[%clk 0:02:45]} 10. Nxe5 {[%clk 0:02:29]}  Nxe5 {[%clk 0:02:41]} 11. Bxe5 {[%clk 0:02:29]}  Bxe5 {[%clk 0:02:41]} 12. dxe5 {[%clk 0:02:29]}  Nd7 {[%clk 0:02:41]} 13. Nf3 {[%clk 0:02:15]}  Qb6 {[%clk 0:02:03]} 14. c4 {[%clk 0:01:56]}  e6 {[%clk 0:01:56]} 15. Qc2 {[%clk 0:01:52]}  Qc7 {[%clk 0:01:19]} 16. Rfd1 {[%clk 0:01:01]}  Nxe5 {[%clk 0:01:11]} 17. cxd5 {[%clk 0:01:01]}  exd5 {[%clk 0:01:11]} 18. Rxd5 {[%clk 0:01:00]}  Nxf3+ {[%clk 0:01:05]} 19. Bxf3 {[%clk 0:00:59]}  Bxh3 {[%clk 0:01:05]} 20. Rad1 {[%clk 0:00:46]}  Bf5 {[%clk 0:00:34]} 21. Qc3 {[%clk 0:00:44]}  Rad8 {[%clk 0:00:30]} 22. Rxd8 {[%clk 0:00:36]}  Rxd8 {[%clk 0:00:31]} 23. Bd5+ {[%clk 0:00:28]}  Rxd5 {[%clk 0:00:31]} 24. Rxd5 {[%clk 0:00:28]}  Qe7 {[%clk 0:00:19]} 25. Re5 {[%clk 0:00:26]}  Qf7 {[%clk 0:00:20]} 26. a3 {[%clk 0:00:22]}  h5 {[%clk 0:00:18]} 27. Qe3 {[%clk 0:00:19]}  Bd7 {[%clk 0:00:18]} 28. Qxa7 {[%clk 0:00:17]}  Qf4 {[%clk 0:00:17]} 29. Qe3 {[%clk 0:00:17]}  Qc4 {[%clk 0:00:15]} 30. Qc3 {[%clk 0:00:15]}  Qf4 {[%clk 0:00:02]} 31. Re7 {[%clk 0:00:14]} 1-0


[Site "https://www.chess.com"]

[Event "Titled Tuesday Blitz June 27 Early 2023"]
[White "Reprintsev, Alexander"]
[Black "Kaidanov, Gregory"]
[WhiteFideId "14100541"]
[BlackFideId "2008564"]
[WhiteElo "2467"]
[BlackElo "2649"]
[Result "1/2-1/2"]
[Round "6"]
[TimeControl "180+2"]
[Date "2023.06.27"]
[WhiteClock "0:00:23"]
[BlackClock "0:00:03"]
[Board "84"]

1. e4 {[%clk 0:03:00]}  e5 {[%clk 0:02:59]} 2. Nf3 {[%clk 0:03:00]}  Nc6 {[%clk 0:02:59]} 3. Bc4 {[%clk 0:03:00]}  Bc5 {[%clk 0:02:58]} 4. b4 {[%clk 0:02:59]}  Bxb4 {[%clk 0:02:58]} 5. c3 {[%clk 0:02:59]}  Be7 {[%clk 0:02:57]} 6. d4 {[%clk 0:02:54]}  Na5 {[%clk 0:02:57]} 7. Be2 {[%clk 0:02:54]}  exd4 {[%clk 0:02:53]} 8. Qxd4 {[%clk 0:02:53]}  Nf6 {[%clk 0:02:49]} 9. e5 {[%clk 0:02:53]}  Nc6 {[%clk 0:02:47]} 10. Qh4 {[%clk 0:02:51]}  Nd5 {[%clk 0:02:44]} 11. Qg3 {[%clk 0:02:51]}  g6 {[%clk 0:02:42]} 12. Bh6 {[%clk 0:02:34]}  d6 {[%clk 0:02:41]} 13. O-O {[%clk 0:02:24]}  dxe5 {[%clk 0:02:28]} 14. Rd1 {[%clk 0:02:11]}  e4 {[%clk 0:02:02]} 15. Ng5 {[%clk 0:01:59]}  Bd6 {[%clk 0:01:11]} 16. Qh4 {[%clk 0:01:57]}  Nde7 {[%clk 0:00:59]} 17. Nxe4 {[%clk 0:01:51]}  Nf5 {[%clk 0:00:56]} 18. Qxd8+ {[%clk 0:01:50]}  Nxd8 {[%clk 0:00:51]} 19. Nxd6+ {[%clk 0:01:50]}  cxd6 {[%clk 0:00:47]} 20. Bf4 {[%clk 0:01:49]}  Ne6 {[%clk 0:00:38]} 21. Bxd6 {[%clk 0:01:47]}  Nxd6 {[%clk 0:00:38]} 22. Rxd6 {[%clk 0:01:47]}  Ke7 {[%clk 0:00:39]} 23. Rd2 {[%clk 0:01:41]}  Bd7 {[%clk 0:00:39]} 24. Na3 {[%clk 0:01:40]}  Bc6 {[%clk 0:00:38]} 25. Nc4 {[%clk 0:01:37]}  Rhd8 {[%clk 0:00:34]} 26. Rb2 {[%clk 0:01:37]}  b6 {[%clk 0:00:20]} 27. a4 {[%clk 0:01:36]}  Nc5 {[%clk 0:00:17]} 28. a5 {[%clk 0:01:34]}  Rab8 {[%clk 0:00:13]} 29. axb6 {[%clk 0:01:33]}  axb6 {[%clk 0:00:14]} 30. Rxb6 {[%clk 0:01:30]}  Rxb6 {[%clk 0:00:13]} 31. Nxb6 {[%clk 0:01:30]}  Rd2 {[%clk 0:00:14]} 32. Bf3 {[%clk 0:01:29]}  Bxf3 {[%clk 0:00:13]} 33. gxf3 {[%clk 0:01:30]}  Nd3 {[%clk 0:00:12]} 34. Ra7+ {[%clk 0:01:29]}  Kf8 {[%clk 0:00:12]} 35. Rd7 {[%clk 0:01:23]}  Rd1+ {[%clk 0:00:12]} 36. Kg2 {[%clk 0:01:23]}  Nf4+ {[%clk 0:00:12]} 37. Kg3 {[%clk 0:01:23]}  Ne2+ {[%clk 0:00:12]} 38. Kh3 {[%clk 0:01:18]}  Rg1 {[%clk 0:00:12]} 39. Nd5 {[%clk 0:01:10]}  Rg5 {[%clk 0:00:09]} 40. c4 {[%clk 0:01:02]}  Ng1+ {[%clk 0:00:06]} 41. Kh4 {[%clk 0:01:00]}  Nxf3+ {[%clk 0:00:07]} 42. Kh3 {[%clk 0:01:00]}  Rg1 {[%clk 0:00:06]} 43. Ne3 {[%clk 0:00:47]}  Ng5+ {[%clk 0:00:04]} 44. Kh4 {[%clk 0:00:46]}  Nf3+ {[%clk 0:00:04]} 45. Kh3 {[%clk 0:00:47]}  h5 {[%clk 0:00:05]} 46. Rd1 {[%clk 0:00:38]}  Ng5+ {[%clk 0:00:04]} 47. Kh4 {[%clk 0:00:38]}  Nf3+ {[%clk 0:00:04]} 48. Kh3 {[%clk 0:00:39]}  Rg5 {[%clk 0:00:04]} 49. Rd5 {[%clk 0:00:34]}  f5 {[%clk 0:00:04]} 50. c5 {[%clk 0:00:23]}  Rg1 {[%clk 0:00:03]} 51. c6 {[%clk 0:00:22]}  Ng5+ {[%clk 0:00:02]} 52. Kh4 {[%clk 0:00:22]}  Nf3+ {[%clk 0:00:02]} 53. Kh3 {[%clk 0:00:22]}  Ng5+ {[%clk 0:00:02]} 54. Kh4 {[%clk 0:00:22]}  Nf3+ {[%clk 0:00:03]} 55. Kh3 {[%clk 0:00:23]} 1/2-1/2


[Site "https://www.chess.com"]

[Event "Titled Tuesday Blitz June 27 Early 2023"]
[White "Sadykov, Ramil"]
[Black "Miszler, Levente"]
[WhiteFideId "24113590"]
[BlackFideId "763276"]
[WhiteElo "2647"]
[BlackElo "2466"]
[Result "0-1"]
[Round "6"]
[TimeControl "180+2"]
[Date "2023.06.27"]
[WhiteClock "0:00:00"]
[BlackClock "0:00:21"]
[Board "85"]

1. d4 {[%clk 0:03:00]}  Nf6 {[%clk 0:02:58]} 2. Nc3 {[%clk 0:03:01]}  e6 {[%clk 0:02:57]} 3. e4 {[%clk 0:03:00]}  d5 {[%clk 0:02:57]} 4. e5 {[%clk 0:03:00]}  Nfd7 {[%clk 0:02:56]} 5. Nce2 {[%clk 0:02:59]}  c5 {[%clk 0:02:56]} 6. c3 {[%clk 0:02:59]}  Nc6 {[%clk 0:02:57]} 7. f4 {[%clk 0:02:58]}  Qb6 {[%clk 0:02:46]} 8. Nf3 {[%clk 0:02:58]}  cxd4 {[%clk 0:02:46]} 9. cxd4 {[%clk 0:02:51]}  Bb4+ {[%clk 0:02:46]} 10. Bd2 {[%clk 0:02:40]}  O-O {[%clk 0:02:44]} 11. Bxb4 {[%clk 0:02:34]}  Qxb4+ {[%clk 0:02:44]} 12. Qd2 {[%clk 0:02:35]}  Qxd2+ {[%clk 0:02:43]} 13. Kxd2 {[%clk 0:02:36]}  b6 {[%clk 0:02:42]} 14. Rc1 {[%clk 0:02:32]}  Bb7 {[%clk 0:02:42]} 15. Nc3 {[%clk 0:02:33]}  a6 {[%clk 0:02:40]} 16. Bd3 {[%clk 0:02:27]}  Rfc8 {[%clk 0:02:40]} 17. h4 {[%clk 0:02:19]}  h6 {[%clk 0:02:37]} 18. h5 {[%clk 0:02:17]}  b5 {[%clk 0:02:27]} 19. g4 {[%clk 0:02:15]}  Nb6 {[%clk 0:02:27]} 20. b3 {[%clk 0:02:15]}  b4 {[%clk 0:02:22]} 21. Ne2 {[%clk 0:01:38]}  a5 {[%clk 0:02:22]} 22. g5 {[%clk 0:01:22]}  a4 {[%clk 0:02:22]} 23. gxh6 {[%clk 0:01:12]}  gxh6 {[%clk 0:02:23]} 24. Ke3 {[%clk 0:01:09]}  axb3 {[%clk 0:02:20]} 25. axb3 {[%clk 0:01:10]}  Na5 {[%clk 0:02:20]} 26. Nd2 {[%clk 0:01:07]}  Rxc1 {[%clk 0:02:12]} 27. Rxc1 {[%clk 0:01:06]}  Ba6 {[%clk 0:02:06]} 28. Bxa6 {[%clk 0:00:58]}  Rxa6 {[%clk 0:02:07]} 29. Rc7 {[%clk 0:00:55]}  Ra8 {[%clk 0:01:45]} 30. f5 {[%clk 0:00:45]}  Rc8 {[%clk 0:01:37]} 31. Rxc8+ {[%clk 0:00:41]}  Nxc8 {[%clk 0:01:38]} 32. f6 {[%clk 0:00:42]}  Na7 {[%clk 0:01:21]} 33. Nc1 {[%clk 0:00:39]}  Nb5 {[%clk 0:01:13]} 34. Kd3 {[%clk 0:00:19]}  Nc6 {[%clk 0:01:08]} 35. Ne2 {[%clk 0:00:19]}  Kh7 {[%clk 0:01:01]} 36. Nf3 {[%clk 0:00:17]}  Na5 {[%clk 0:00:57]} 37. Kc2 {[%clk 0:00:17]}  Nc6 {[%clk 0:00:56]} 38. Kb2 {[%clk 0:00:11]}  Kg8 {[%clk 0:00:54]} 39. Kc1 {[%clk 0:00:11]}  Kh7 {[%clk 0:00:54]} 40. Kc2 {[%clk 0:00:11]}  Kg8 {[%clk 0:00:55]} 41. Kd3 {[%clk 0:00:11]}  Na5 {[%clk 0:00:54]} 42. Nd2 {[%clk 0:00:11]}  Kh7 {[%clk 0:00:53]} 43. Ke3 {[%clk 0:00:07]}  Kg8 {[%clk 0:00:51]} 44. Nc1 {[%clk 0:00:07]}  Nc6 {[%clk 0:00:50]} 45. Nd3 {[%clk 0:00:07]}  Nbxd4 {[%clk 0:00:30]} 46. Nc5 {[%clk 0:00:02]}  Nf5+ {[%clk 0:00:26]} 47. Kf4 {[%clk 0:00:02]}  Ncd4 {[%clk 0:00:23]} 48. Nd3 {[%clk 0:00:01]}  Nc6 {[%clk 0:00:22]} 49. Nc5 {[%clk 0:00:00]}  Nfd4 {[%clk 0:00:21]} 0-1


[Site "https://www.chess.com"]

[Event "Titled Tuesday Blitz June 27 Early 2023"]
[White "Schnaider, Ilan"]
[Black "Luukkonen, Tommi"]
[WhiteFideId "169013"]
[BlackFideId "501808"]
[WhiteElo "2645"]
[BlackElo "2446"]
[Result "1-0"]
[Round "6"]
[TimeControl "180+2"]
[Date "2023.06.27"]
[WhiteClock "0:00:13"]
[BlackClock "0:00:26"]
[Board "87"]

1. e4 {[%clk 0:02:53]}  c5 {[%clk 0:02:58]} 2. Nf3 {[%clk 0:02:53]}  d6 {[%clk 0:02:58]} 3. Bb5+ {[%clk 0:02:52]}  Nd7 {[%clk 0:02:58]} 4. a4 {[%clk 0:02:51]}  Nf6 {[%clk 0:02:54]} 5. Nc3 {[%clk 0:02:52]}  g6 {[%clk 0:02:52]} 6. a5 {[%clk 0:02:52]}  a6 {[%clk 0:02:49]} 7. Be2 {[%clk 0:02:52]}  Bg7 {[%clk 0:02:49]} 8. O-O {[%clk 0:02:52]}  O-O {[%clk 0:02:49]} 9. d4 {[%clk 0:02:52]}  cxd4 {[%clk 0:02:48]} 10. Qxd4 {[%clk 0:02:53]}  Nb8 {[%clk 0:02:47]} 11. h3 {[%clk 0:02:34]}  Nc6 {[%clk 0:02:46]} 12. Qe3 {[%clk 0:02:34]}  Nxa5 {[%clk 0:02:46]} 13. Rd1 {[%clk 0:02:21]}  Nd7 {[%clk 0:02:44]} 14. Nd5 {[%clk 0:02:19]}  Nc6 {[%clk 0:02:43]} 15. Qf4 {[%clk 0:02:15]}  Nde5 {[%clk 0:02:37]} 16. Nxe5 {[%clk 0:02:07]}  Nxe5 {[%clk 0:02:36]} 17. Qh4 {[%clk 0:02:07]}  e6 {[%clk 0:02:24]} 18. Qxd8 {[%clk 0:01:20]}  Rxd8 {[%clk 0:02:25]} 19. Nb6 {[%clk 0:01:21]}  Rb8 {[%clk 0:02:24]} 20. Bg5 {[%clk 0:01:18]}  f6 {[%clk 0:02:22]} 21. Bf4 {[%clk 0:01:19]}  Nf7 {[%clk 0:02:21]} 22. Bc4 {[%clk 0:01:14]}  e5 {[%clk 0:02:02]} 23. Be3 {[%clk 0:01:08]}  Kf8 {[%clk 0:01:49]} 24. Ra3 {[%clk 0:01:01]}  f5 {[%clk 0:01:42]} 25. f3 {[%clk 0:00:38]}  Bh6 {[%clk 0:01:34]} 26. Bf2 {[%clk 0:00:33]}  fxe4 {[%clk 0:01:30]} 27. fxe4 {[%clk 0:00:32]}  Ng5 {[%clk 0:01:30]} 28. Bh4 {[%clk 0:00:29]}  Re8 {[%clk 0:01:24]} 29. Rxd6 {[%clk 0:00:27]}  Nxe4 {[%clk 0:01:19]} 30. Rf3+ {[%clk 0:00:27]}  Kg7 {[%clk 0:01:19]} 31. Nxc8 {[%clk 0:00:20]}  Rbxc8 {[%clk 0:01:12]} 32. Rd7+ {[%clk 0:00:20]}  Kh8 {[%clk 0:01:12]} 33. Bd5 {[%clk 0:00:21]}  Bg5 {[%clk 0:00:59]} 34. Rff7 {[%clk 0:00:16]}  Nf6 {[%clk 0:00:45]} 35. Bxg5 {[%clk 0:00:12]}  Nxd7 {[%clk 0:00:45]} 36. Rxd7 {[%clk 0:00:12]}  Rf8 {[%clk 0:00:42]} 37. Bh6 {[%clk 0:00:13]}  b5 {[%clk 0:00:26]} 38. Bg7# {[%clk 0:00:13]} 1-0


[Site "https://www.chess.com"]